Department family,Entity,Date,Expense Type,Expense area,Supplier,Transation number,Amount
Department for Culture Media and Sport,Department for Culture Media and Sport,01/06/2011,Grant-in-Aid (DCMS NDPBs),GIA Sports bodies,Football Licencing Authority,0030022362,"87,216.00"
Department for Culture Media and Sport,Department for Culture Media and Sport,01/06/2011,Grant-in-Aid (DCMS NDPBs),GIA Museums & Galleries,Sir John Soane's Museum,0030022409,"99,620.00"
Department for Culture Media and Sport,Department for Culture Media and Sport,01/06/2011,Grant-in-Aid (DCMS NDPBs),GIA Museums & Galleries,Wallace Collection,0030022411,"251,155.00"
Department for Culture Media and Sport,Department for Culture Media and Sport,01/06/2011,Grant-in-Aid (DCMS NDPBs),GIA Libraries bodies,Public Lending Right,0030022412,"73,817.00"
Department for Culture Media and Sport,Department for Culture Media and Sport,01/06/2011,Grant-in-Aid (DCMS NDPBs),GIA Museums & Galleries,National Portrait Gallery,0030022413,"616,500.00"
Department for Culture Media and Sport,Department for Culture Media and Sport,01/06/2011,Grant-in-Aid (DCMS NDPBs),GIA Museums & Galleries,The Royal Armouries,0030022414,"820,000.00"
Department for Culture Media and Sport,Department for Culture Media and Sport,01/06/2011,Capital Grant Private Sector,Museums & Galleries other grants,Tyne and Wear Museums,0030022415,"251,500.00"
Department for Culture Media and Sport,Department for Culture Media and Sport,01/06/2011,Grant-in-Aid (DCMS NDPBs),GIA Museums & Galleries,National Maritime Museum,0030022416,"1,421,500.00"
Department for Culture Media and Sport,Department for Culture Media and Sport,01/06/2011,Grant-in-Aid (DCMS NDPBs),GIA Museums & Galleries,Geffrye Museum,0030022417,"150,000.00"
Department for Culture Media and Sport,Department for Culture Media and Sport,01/06/2011,Grant-in-Aid (DCMS NDPBs),GIA Architecture+Heritage,Royal Household,0030022418,"500,000.00"
Department for Culture Media and Sport,Department for Culture Media and Sport,01/06/2011,Grant-in-Aid (DCMS NDPBs),GIA Museums & Galleries,National Gallery,0030022419,"2,575,315.00"
Department for Culture Media and Sport,Department for Culture Media and Sport,01/06/2011,Current Grants Private Sector,GIA Museums & Galleries,National Museum of Science & Industry,0030022420,"225,580.00"
Department for Culture Media and Sport,Department for Culture Media and Sport,01/06/2011,Grant-in-Aid (DCMS NDPBs),GIA Tourism bodies,Visit Britain,0030022449,"2,798,000.00"
Department for Culture Media and Sport,Department for Culture Media and Sport,01/06/2011,Grant-in-Aid (DCMS NDPBs),GIA Museums & Galleries,Imperial War Museum,0030022450,"2,020,033.00"
Department for Culture Media and Sport,Department for Culture Media and Sport,01/06/2011,Grant-in-Aid (DCMS NDPBs),GIA Museums & Galleries,British Museum,0030022451,"5,352,899.00"
Department for Culture Media and Sport,Department for Culture Media and Sport,01/06/2011,Grant-in-Aid (DCMS NDPBs),GIA Libraries bodies,British Library,0030022452,"4,956,413.00"
Department for Culture Media and Sport,Department for Culture Media and Sport,01/06/2011,Grant-in-Aid (DCMS NDPBs),GIA Museums & Galleries,Natural History Museum,0030022453,"3,873,000.00"
Department for Culture Media and Sport,Department for Culture Media and Sport,01/06/2011,Grant-in-Aid (DCMS NDPBs),GIA Museums & Galleries,Museum of Science & Ind in Manchester,0030022454,"333,166.00"
Department for Culture Media and Sport,Department for Culture Media and Sport,01/06/2011,Grant-in-Aid (DCMS NDPBs),GIA Museums & Galleries,National Museum of Science & Industry,0030022455,"3,230,000.00"
Department for Culture Media and Sport,Department for Culture Media and Sport,01/06/2011,Grant-in-Aid (DCMS NDPBs),GIA Museums & Galleries,Horniman Museum,0030022456,"334,304.00"
Department for Culture Media and Sport,Department for Culture Media and Sport,01/06/2011,Grant-in-Aid (DCMS NDPBs),GIA Museums & Galleries,Victoria & Albert Museum,0030022467,"3,446,250.00"
Department for Culture Media and Sport,Department for Culture Media and Sport,01/06/2011,Grant-in-Aid (DCMS NDPBs),GIA Architecture+Heritage,English Heritage,0030022478,"9,000,000.00"
Department for Culture Media and Sport,Department for Culture Media and Sport,01/06/2011,Grant-in-Aid (DCMS NDPBs),GIA Arts bodies,Arts Council of England,0030022479,"18,951,306.00"
Department for Culture Media and Sport,Department for Culture Media and Sport,01/06/2011,Grant-in-Aid (DCMS NDPBs),GIA British Film Institute,British Film Institute,0030022480,"3,462,696.00"
Department for Culture Media and Sport,Department for Culture Media and Sport,01/06/2011,Grant-in-Aid (DCMS NDPBs),GIA Sports bodies,United Kingdom Anti Doping Ltd,0030022481,"539,346.00"
Department for Culture Media and Sport,Department for Culture Media and Sport,01/06/2011,Grant-in-Aid (DCMS NDPBs),GIA Sports bodies,United Kingdom Sports Council,0030022482,"4,251,563.00"
Department for Culture Media and Sport,Department for Culture Media and Sport,01/06/2011,Grant-in-Aid (DCMS NDPBs),GIA Sports bodies,Sport England,0030022483,"2,000,000.00"
Department for Culture Media and Sport,Department for Culture Media and Sport,01/06/2011,Grant-in-Aid (DCMS NDPBs),GIA S4C Welsh Fourth Channel,Welsh Fourth Channel Authority,0030022489,"8,265,000.00"
Department for Culture Media and Sport,Department for Culture Media and Sport,01/06/2011,Grant-in-Aid (DCMS NDPBs),GIA Museums & Galleries,National Museums & Galleries Merseyside,0030022516,"1,581,347.00"
Department for Culture Media and Sport,Department for Culture Media and Sport,02/06/2011,Grant to BBC:Home Broadcasting,Home Broadcasting:Grant to BBC,British Broadcasting Corporation,0030022377,"35,073,000.00"
Department for Culture Media and Sport,Department for Culture Media and Sport,02/06/2011,Grant-in-Aid (DCMS NDPBs),GIA Olympic Delivery Authority,Olympic Delivery Authority (31255483),0030022487,"109,000,000.00"
Department for Culture Media and Sport,Department for Culture Media and Sport,02/06/2011,Purchase of Works,Govt Art Collection programme,Advanced Graphics London,0030022521,"1,450.00"
Department for Culture Media and Sport,Department for Culture Media and Sport,02/06/2011,Art Transport - UK,Govt Art Collection programme,Fine Art Transport Services Ltd,0030022523,571.00
Department for Culture Media and Sport,Department for Culture Media and Sport,02/06/2011,Temp staff filling vacancy,Government Olympic Executive,Hays Office Support,0030022524,896.35
Department for Culture Media and Sport,Department for Culture Media and Sport,02/06/2011,Works Manager Fees,State Ceremonials - Programme Costs,E C Harris LLP,0030022526,"17,065.74"
Department for Culture Media and Sport,Department for Culture Media and Sport,02/06/2011,Ceremonial Event Costs,State Ceremonials - Programme Costs,Bristol & Principality Services Ltd,0030022528,"8,500.00"
Department for Culture Media and Sport,Department for Culture Media and Sport,03/06/2011,Grant-in-Aid (DCMS NDPBs),GIA Museums & Galleries,Tate Gallery,0030022410,"3,289,305.00"
Department for Culture Media and Sport,Department for Culture Media and Sport,03/06/2011,Temp staff Interim managers,Government Olympic Executive,Russam GMS LTD,0030022531,"9,342.00"
Department for Culture Media and Sport,Department for Culture Media and Sport,03/06/2011,Temp staff Interim managers,Government Olympic Executive,Russam GMS LTD,0030022532,"8,407.80"
Department for Culture Media and Sport,Department for Culture Media and Sport,03/06/2011,Temp staff Interim managers,Government Olympic Executive,Russam GMS LTD,0030022533,"11,210.40"
Department for Culture Media and Sport,Department for Culture Media and Sport,03/06/2011,Temp staff Interim managers,Government Olympic Executive,Russam GMS LTD,0030022534,"8,407.80"
Department for Culture Media and Sport,Department for Culture Media and Sport,03/06/2011,Art Transport - UK,Govt Art Collection programme,Fine Art Transport Services Ltd,0030022536,"1,362.00"
Department for Culture Media and Sport,Department for Culture Media and Sport,03/06/2011,Art Transport - UK,Govt Art Collection programme,Jayhawk Ltd,0030022539,520.00
Department for Culture Media and Sport,Department for Culture Media and Sport,03/06/2011,Conservation - Works on Paper,Govt Art Collection programme,Voitek Conservation of Works of Art,0030022540,"3,690.00"
Department for Culture Media and Sport,Department for Culture Media and Sport,03/06/2011,New Picture Frames,Govt Art Collection programme,Stewart Heslop Frames,0030022542,"2,564.40"
Department for Culture Media and Sport,Department for Culture Media and Sport,03/06/2011,New Picture Frames,Govt Art Collection programme,Stewart Heslop Frames,0030022543,"3,780.00"
Department for Culture Media and Sport,Department for Culture Media and Sport,03/06/2011,T&S UK (Officials only),Procurement,Hogg Robinson ( Travel ) Limited,0030022545,"4,009.70"
Department for Culture Media and Sport,Department for Culture Media and Sport,03/06/2011,Temp staff filling vacancy,Public Engagement + Recognition Unit,Brook Street ( UK ) Ltd,0030022550,642.94
Department for Culture Media and Sport,Department for Culture Media and Sport,06/06/2011,Learning & Development,Central Learning & Development,ComputerWorld Training Ltd,0030022511,"9,000.00"
Department for Culture Media and Sport,Department for Culture Media and Sport,06/06/2011,Learning & Development,Central Learning & Development,ComputerWorld Training Ltd,0030022512,"15,000.00"
Department for Culture Media and Sport,Department for Culture Media and Sport,06/06/2011,Learning & Development,Central Learning & Development,Enacta Limited,0030022569,"3,286.00"
Department for Culture Media and Sport,Department for Culture Media and Sport,07/06/2011,Other Library subscriptions,Evidence & Analysis unit administration,Oxford University Press,0030022525,"1,200.00"
Department for Culture Media and Sport,Department for Culture Media and Sport,07/06/2011,Works Manager Fees,State Ceremonials - Programme Costs,E C Harris LLP,0030022529,"123,083.41"
Department for Culture Media and Sport,Department for Culture Media and Sport,07/06/2011,Research,CASE Joint Research Projects,"Inst of Education, University of London",0030022547,"1,700.00"
Department for Culture Media and Sport,Department for Culture Media and Sport,07/06/2011,Temp staff filling vacancy,Human Resources Team,Brook Street ( UK ) Ltd,0030022551,935.20
Department for Culture Media and Sport,Department for Culture Media and Sport,07/06/2011,Temp staff filling vacancy,Government Olympic Executive,Brook Street ( UK ) Ltd,0030022552,691.73
Department for Culture Media and Sport,Department for Culture Media and Sport,07/06/2011,Temp staff filling vacancy,Government Olympic Executive,Brook Street ( UK ) Ltd,0030022553,815.66
Department for Culture Media and Sport,Department for Culture Media and Sport,07/06/2011,Temp staff filling vacancy,Government Olympic Executive,Brook Street ( UK ) Ltd,0030022554,610.56
Department for Culture Media and Sport,Department for Culture Media and Sport,07/06/2011,Temp staff filling vacancy,Government Olympic Executive,Brook Street ( UK ) Ltd,0030022556,769.61
Department for Culture Media and Sport,Department for Culture Media and Sport,07/06/2011,Temp staff filling vacancy,Government Olympic Executive,Brook Street ( UK ) Ltd,0030022557,839.46
Department for Culture Media and Sport,Department for Culture Media and Sport,07/06/2011,Temp staff filling vacancy,Government Olympic Executive,Brook Street ( UK ) Ltd,0030022558,677.99
Department for Culture Media and Sport,Department for Culture Media and Sport,07/06/2011,Temp staff filling vacancy,Government Olympic Executive,Brook Street ( UK ) Ltd,0030022559,869.93
Department for Culture Media and Sport,Department for Culture Media and Sport,07/06/2011,Waste Management,Estates & Property Services,Ecovert FM Ltd,0030022566,"9,117.76"
Department for Culture Media and Sport,Department for Culture Media and Sport,07/06/2011,Office Accommodation Rent,Estates & Property Services,Cushman & Wakefield,0030022568,"11,409.11"
Department for Culture Media and Sport,Department for Culture Media and Sport,07/06/2011,Finance & Accounting Services,Finance & Planning,Liberata UK Ltd,0030022571,"15,205.26"
Department for Culture Media and Sport,Department for Culture Media and Sport,07/06/2011,New Picture Frames,Govt Art Collection programme,Darbyshire Framemakers,0030022573,"2,520.00"
Department for Culture Media and Sport,Department for Culture Media and Sport,07/06/2011,Temp staff filling vacancy,Government Olympic Executive,Hays Office Support,0030022578,907.69
Department for Culture Media and Sport,Department for Culture Media and Sport,07/06/2011,T&S Overseas (Officials only),Procurement,Capita Business Travel Ltd,0030022581,"8,073.52"
Department for Culture Media and Sport,Department for Culture Media and Sport,08/06/2011,Grant to BBC:Home Broadcasting,Home Broadcasting:Grant to BBC,British Broadcasting Corporation,0030022378,"35,073,000.00"
Department for Culture Media and Sport,Department for Culture Media and Sport,08/06/2011,Other Consultancy,Director Programmes,Watts Group PLC,0030022577,"1,375.73"
Department for Culture Media and Sport,Department for Culture Media and Sport,08/06/2011,Office Accom Fuel & Utilities,Estates & Property Services,EDF Energy Ltd,0030022579,"14,632.55"
Department for Culture Media and Sport,Department for Culture Media and Sport,08/06/2011,Office Accom Fuel & Utilities,Estates & Property Services,EDF Energy Ltd,0030022580,"2,168.35"
Department for Culture Media and Sport,Department for Culture Media and Sport,08/06/2011,Art Transport - UK,Govt Art Collection programme,Fine Art Transport Services Ltd,0030022584,620.00
Department for Culture Media and Sport,Department for Culture Media and Sport,08/06/2011,Other Consultancy,Public Appointments,Jacqueline Ann Francis,0030022587,645.00
Department for Culture Media and Sport,Department for Culture Media and Sport,08/06/2011,National Cutting Service,Press Office,Precise Media Monitoring Ltd,0030022588,"5,697.74"
Department for Culture Media and Sport,Department for Culture Media and Sport,08/06/2011,Publicity,Communications,Precise Media Monitoring Ltd,0030022588,194.45
Department for Culture Media and Sport,Department for Culture Media and Sport,08/06/2011,Subsidy to a Public Corporation,Grant for Olympic Park Operations,London Organising Cttee Of Olympic Games,0030022589,"146,585.99"
Department for Culture Media and Sport,Department for Culture Media and Sport,08/06/2011,New Picture Frames,Govt Art Collection programme,Fletcher Gallery Services,0030022591,997.34
Department for Culture Media and Sport,Department for Culture Media and Sport,08/06/2011,Other Consultancy,Permanent Secretary,Dame Janet Ritterman,0030022593,860.00
Department for Culture Media and Sport,Department for Culture Media and Sport,08/06/2011,Other Consultancy,Permanent Secretary,Virginia Crowe,0030022594,538.00
Department for Culture Media and Sport,Department for Culture Media and Sport,08/06/2011,Temp staff filling vacancy,Government Olympic Executive,Adecco UK Ltd,0030022596,"3,730.16"
Department for Culture Media and Sport,Department for Culture Media and Sport,09/06/2011,Research,EAU Taking Part Survey,TNS UK LTD,0030022495,"97,390.00"
Department for Culture Media and Sport,Department for Culture Media and Sport,09/06/2011,Grant-in-Aid (DCMS NDPBs),GIA Architecture+Heritage,Comm.for Architecture & the Built Envir.,0030022560,"810,393.00"
Department for Culture Media and Sport,Department for Culture Media and Sport,09/06/2011,Temp staff Interim managers,Human Resources Team,Morgan Law Partners LLP,0030022561,"2,160.00"
Department for Culture Media and Sport,Department for Culture Media and Sport,09/06/2011,Reimbursement of Agreed Costs,2012 Inspire Regional Programmers,Welcome to Yorkshire,0030022572,"11,378.81"
Department for Culture Media and Sport,Department for Culture Media and Sport,09/06/2011,Publicity,Communications,Adfield Harvey Ltd,0030022575,"3,125.00"
Department for Culture Media and Sport,Department for Culture Media and Sport,09/06/2011,Ceremonial Event Costs,State Ceremonials - Programme Costs,Media Structures Ltd,0030022576,"198,639.73"
Department for Culture Media and Sport,Department for Culture Media and Sport,09/06/2011,Statutory Instrument Costs,Director Programmes,The Stationery Office,0030022604,"1,641.95"
Department for Culture Media and Sport,Department for Culture Media and Sport,09/06/2011,Learning & Development,Central Learning & Development,Teleios Consulting South East Ltd,0030022607,510.00
Department for Culture Media and Sport,Department for Culture Media and Sport,09/06/2011,Healthy Workplace,Human Resources Team,Health Management Ltd,0030022613,772.51
Department for Culture Media and Sport,Department for Culture Media and Sport,09/06/2011,Healthy Workplace,Human Resources Team,Health Management Ltd,0030022614,916.50
Department for Culture Media and Sport,Department for Culture Media and Sport,09/06/2011,Healthy Workplace,Human Resources Team,Health Management Ltd,0030022616,"1,016.75"
Department for Culture Media and Sport,Department for Culture Media and Sport,09/06/2011,Temp staff filling vacancy,Government Olympic Executive,Hays Office Support,0030022617,794.23
Department for Culture Media and Sport,Department for Culture Media and Sport,09/06/2011,Press Associated Subscriptions,Press Office,The Press Association,0030022626,"1,655.32"
Department for Culture Media and Sport,Department for Culture Media and Sport,10/06/2011,Legal Services - Programme,Gambling + Lottery Other Progs,Linklaters LLP,0030022546,"130,564.90"
Department for Culture Media and Sport,Department for Culture Media and Sport,10/06/2011,Grant to OGD (Resource),DCMS contribution toPFI grants,Dept for Communities & Local Govt,0030022548,"1,538,516.58"
Department for Culture Media and Sport,Department for Culture Media and Sport,10/06/2011,Legal Services - Programme,Gambling + Lottery Other Progs,Linklaters LLP,0030022567,"170,359.05"
Department for Culture Media and Sport,Department for Culture Media and Sport,10/06/2011,Art Transport - UK,Govt Art Collection programme,Oxford Exhibition Services,0030022608,788.00
Department for Culture Media and Sport,Department for Culture Media and Sport,10/06/2011,Art Transport - UK,Govt Art Collection programme,Oxford Exhibition Services,0030022609,525.00
Department for Culture Media and Sport,Department for Culture Media and Sport,10/06/2011,Art Transport - UK,Govt Art Collection programme,Oxford Exhibition Services,0030022611,748.00
Department for Culture Media and Sport,Department for Culture Media and Sport,10/06/2011,Current Grants Private Sector,Own Art and Take It Away,ArtCo Trading Ltd,0030022619,"163,125.00"
Department for Culture Media and Sport,Department for Culture Media and Sport,10/06/2011,Conservation - Picture Frames,Govt Art Collection programme,Alexander G Ley & Son,0030022622,"2,690.00"
Department for Culture Media and Sport,Department for Culture Media and Sport,10/06/2011,Reimbursement of Agreed Costs,Museums+Cultural PropertyProgs,Erfgoed Nederland,0030022628,"2,881.34"
Department for Culture Media and Sport,Department for Culture Media and Sport,10/06/2011,Temp staff filling vacancy,Human Resources Team,Brook Street ( UK ) Ltd,0030022635,532.70
Department for Culture Media and Sport,Department for Culture Media and Sport,10/06/2011,New Picture Frames,Govt Art Collection programme,John Jones Art Centre Ltd,0030022652,"4,054.50"
Department for Culture Media and Sport,Department for Culture Media and Sport,10/06/2011,Office Accom Fuel & Utilities,Estates & Property Services,British Gas Business,0030022654,"2,214.76"
Department for Culture Media and Sport,Department for Culture Media and Sport,10/06/2011,Catering equipment hire,Estates & Property Services,Siemens Financial Services Ltd,0030022655,624.00
Department for Culture Media and Sport,Department for Culture Media and Sport,13/06/2011,Grant to BBC:Home Broadcasting,Home Broadcasting:Grant to BBC,British Broadcasting Corporation,0030022379,"140,292,000.00"
Department for Culture Media and Sport,Department for Culture Media and Sport,13/06/2011,New Picture Frames,Govt Art Collection programme,Stewart Heslop Frames,0030022544,"7,875.60"
Department for Culture Media and Sport,Department for Culture Media and Sport,13/06/2011,Public Appointments Recruitment costs,Public Engagement + Recognition Unit,COI Communication,0030022627,"11,937.92"
Department for Culture Media and Sport,Department for Culture Media and Sport,13/06/2011,Security,Estates & Property Services,Carillion Services Ltd,0030022631,"57,684.58"
Department for Culture Media and Sport,Department for Culture Media and Sport,13/06/2011,Oth Professional Services Prog,Arts Support in Culture Team,The Treasurer to the Queen,0030022645,"1,505.28"
Department for Culture Media and Sport,Department for Culture Media and Sport,13/06/2011,Building Maintenance,Estates & Property Services,Carillion Services Ltd,0030022657,"56,938.55"
Department for Culture Media and Sport,Department for Culture Media and Sport,14/06/2011,Payroll (Logica),Human Resources Team,Logica CMG Enterprise Services,0030022562,"5,261.14"
Department for Culture Media and Sport,Department for Culture Media and Sport,14/06/2011,Payroll (Logica),Human Resources Team,Logica CMG Enterprise Services,0030022564,"1,162.00"
Department for Culture Media and Sport,Department for Culture Media and Sport,14/06/2011,GAC Workshop supplies,Govt Art Collection programme,Scala Publishers Limited,0030022582,"8,500.00"
Department for Culture Media and Sport,Department for Culture Media and Sport,14/06/2011,Temp staff filling vacancy,Government Olympic Executive,Brook Street ( UK ) Ltd,0030022630,670.44
Department for Culture Media and Sport,Department for Culture Media and Sport,14/06/2011,Temp staff filling vacancy,Government Olympic Executive,Brook Street ( UK ) Ltd,0030022634,946.51
Department for Culture Media and Sport,Department for Culture Media and Sport,14/06/2011,Temp staff filling vacancy,Government Olympic Executive,Brook Street ( UK ) Ltd,0030022637,639.18
Department for Culture Media and Sport,Department for Culture Media and Sport,14/06/2011,Exhibition design and construction,Govt Art Collection programme,Amos Marchant FRSA,0030022643,"15,912.00"
Department for Culture Media and Sport,Department for Culture Media and Sport,14/06/2011,Temp staff Interim managers,Human Resources Team,Morgan Law Partners LLP,0030022649,"1,620.00"
Department for Culture Media and Sport,Department for Culture Media and Sport,14/06/2011,Ceremonial Event Costs,State Ceremonials - Programme Costs,Media Structures Ltd,0030022661,"323,628.97"
Department for Culture Media and Sport,Department for Culture Media and Sport,14/06/2011,Temp staff filling vacancy,Human Resources Team,Skillsearch Ltd,0030022665,"2,160.00"
Department for Culture Media and Sport,Department for Culture Media and Sport,14/06/2011,Temp staff filling vacancy,Human Resources Team,Skillsearch Ltd,0030022666,"4,320.00"
Department for Culture Media and Sport,Department for Culture Media and Sport,14/06/2011,Temp staff filling vacancy,Human Resources Team,Skillsearch Ltd,0030022667,"2,400.00"
Department for Culture Media and Sport,Department for Culture Media and Sport,14/06/2011,Other Consultancy,Public Appointments,Butcher-Doulton Communications Ltd,0030022669,645.00
Department for Culture Media and Sport,Department for Culture Media and Sport,14/06/2011,Art Transport - UK,Govt Art Collection programme,Gander & White Shipping Ltd,0030022670,"4,952.00"
Department for Culture Media and Sport,Department for Culture Media and Sport,14/06/2011,Other Consultancy,Public Appointments,John Churchill,0030022672,537.50
Department for Culture Media and Sport,Department for Culture Media and Sport,14/06/2011,Healthy Workplace,Human Resources Team,Central YMCA,0030022677,882.00
Department for Culture Media and Sport,Department for Culture Media and Sport,15/06/2011,Other Library subscriptions,Director Programmes,Enders Analysis,0030022676,"3,600.00"
Department for Culture Media and Sport,Department for Culture Media and Sport,15/06/2011,T&S UK (Officials only),Procurement,Hogg Robinson ( Travel ) Limited,0030022681,"1,977.40"
Department for Culture Media and Sport,Department for Culture Media and Sport,15/06/2011,Temp staff Interim managers,Government Olympic Executive,Russam GMS LTD,0030022687,"6,539.40"
Department for Culture Media and Sport,Department for Culture Media and Sport,15/06/2011,Temp staff Interim managers,Government Olympic Executive,Russam GMS LTD,0030022688,"8,407.80"
Department for Culture Media and Sport,Department for Culture Media and Sport,15/06/2011,Temp staff Interim managers,Government Olympic Executive,Russam GMS LTD,0030022689,"9,342.00"
Department for Culture Media and Sport,Department for Culture Media and Sport,15/06/2011,Temp staff Interim managers,Government Olympic Executive,Russam GMS LTD,0030022690,"13,078.80"
Department for Culture Media and Sport,Department for Culture Media and Sport,15/06/2011,Other Telephone Charges,Information Services,Telefonica O2 UK Ltd,0030022691,"1,632.00"
Department for Culture Media and Sport,Department for Culture Media and Sport,15/06/2011,Other Hospitality,Government Olympic Executive,London Organising Cttee Of Olympic Games,0030022700,612.00
Department for Culture Media and Sport,Department for Culture Media and Sport,15/06/2011,Exhibition design and construction,Govt Art Collection programme,Renee E Kopal,0030022701,545.00
Department for Culture Media and Sport,Department for Culture Media and Sport,15/06/2011,Corporate Subs (Trade/Profess),Human Resources Team,Reed Business Information,0030022703,"11,400.00"
Department for Culture Media and Sport,Department for Culture Media and Sport,15/06/2011,New Picture Frames,Govt Art Collection programme,Darbyshire Framemakers,0030022705,"3,138.00"
Department for Culture Media and Sport,Department for Culture Media and Sport,16/06/2011,Grant-in-Aid (DCMS NDPBs),GIA Olympic Delivery Authority,Olympic Delivery Authority (31255483),0030022488,"60,000,000.00"
Department for Culture Media and Sport,Department for Culture Media and Sport,16/06/2011,Current Grants Private Sector,Listed Places of Worship Grant Scheme,Summary value of grants paid by Liberata UK Ltd,0030022699,"337,677.85"
Department for Culture Media and Sport,Department for Culture Media and Sport,16/06/2011,Other Capital Grants,Memorials Grant Scheme,Summary value of grants paid by Liberata UK Ltd,0030022709,"27,757.49"
Department for Culture Media and Sport,Department for Culture Media and Sport,17/06/2011,Grant to BBC:Home Broadcasting,Home Broadcasting:Grant to BBC,British Broadcasting Corporation,0030022380,"35,073,000.00"
Department for Culture Media and Sport,Department for Culture Media and Sport,17/06/2011,Accommodation Management Fees,Estates & Property Services,Cripps Harries Hall LLP,0030022682,"1,728.00"
Department for Culture Media and Sport,Department for Culture Media and Sport,17/06/2011,Contract Catering Provider,Estates & Property Services,Baxterstorey,0030022683,"4,807.37"
Department for Culture Media and Sport,Department for Culture Media and Sport,17/06/2011,Learning & Development,Central Learning & Development,Eliesha Training Ltd,0030022710,"1,610.00"
Department for Culture Media and Sport,Department for Culture Media and Sport,17/06/2011,Temp staff Interim managers,Human Resources Team,Morgan Law Partners LLP,0030022714,"2,700.00"
Department for Culture Media and Sport,Department for Culture Media and Sport,17/06/2011,Temp staff filling vacancy,Government Olympic Executive,Brook Street ( UK ) Ltd,0030022720,746.70
Department for Culture Media and Sport,Department for Culture Media and Sport,17/06/2011,Temp staff filling vacancy,Government Olympic Executive,Brook Street ( UK ) Ltd,0030022721,935.24
Department for Culture Media and Sport,Department for Culture Media and Sport,17/06/2011,Temp staff filling vacancy,Government Olympic Executive,Brook Street ( UK ) Ltd,0030022722,682.56
Department for Culture Media and Sport,Department for Culture Media and Sport,17/06/2011,Temp staff filling vacancy,Government Olympic Executive,Brook Street ( UK ) Ltd,0030022723,834.74
Department for Culture Media and Sport,Department for Culture Media and Sport,17/06/2011,Temp staff filling vacancy,Government Olympic Executive,Brook Street ( UK ) Ltd,0030022726,572.62
Department for Culture Media and Sport,Department for Culture Media and Sport,17/06/2011,Temp staff filling vacancy,Government Olympic Executive,Brook Street ( UK ) Ltd,0030022727,862.00
Department for Culture Media and Sport,Department for Culture Media and Sport,17/06/2011,Temp staff filling vacancy,Government Olympic Executive,Brook Street ( UK ) Ltd,0030022728,558.88
Department for Culture Media and Sport,Department for Culture Media and Sport,17/06/2011,Temp staff filling vacancy,Government Olympic Executive,Brook Street ( UK ) Ltd,0030022729,892.09
Department for Culture Media and Sport,Department for Culture Media and Sport,20/06/2011,Temp staff filling vacancy,Public Engagement + Recognition Unit,Brook Street ( UK ) Ltd,0030022724,594.34
Department for Culture Media and Sport,Department for Culture Media and Sport,20/06/2011,Current Grants Private Sector,Arts Support in Culture Team,Poetry Society,0030022730,"9,862.00"
Department for Culture Media and Sport,Department for Culture Media and Sport,20/06/2011,Statutory Instrument Costs,Director Programmes,The Stationery Office,0030022732,632.00
Department for Culture Media and Sport,Department for Culture Media and Sport,20/06/2011,Publications & Website,Govt Art Collection programme,Trade Winds Colour Prints Ltd,0030022734,"2,287.20"
Department for Culture Media and Sport,Department for Culture Media and Sport,21/06/2011,Oth Professional Services Prog,Gambling + Lottery Other Progs,Ernst & Young LLP,0030022685,"318,600.00"
Department for Culture Media and Sport,Department for Culture Media and Sport,21/06/2011,Oth Professional Services Prog,Gambling + Lottery Other Progs,Ernst & Young LLP,0030022686,"46,481.10"
Department for Culture Media and Sport,Department for Culture Media and Sport,21/06/2011,Other Telephone Charges,Information Services,Daisy Telecoms,0030022715,"1,083.84"
Department for Culture Media and Sport,Department for Culture Media and Sport,22/06/2011,Office Accomm Service Charges,Estates & Property Services,Lazari Investments Ltd,0030022445,"8,560.00"
Department for Culture Media and Sport,Department for Culture Media and Sport,22/06/2011,Office Accommodation Rent,Estates & Property Services,Lazari Investments Ltd,0030022446,"163,750.00"
Department for Culture Media and Sport,Department for Culture Media and Sport,22/06/2011,Office Accommodation Rent,Estates & Property Services,AMAS Ltd C/O Jones Lang Lasalle,0030022447,"1,205,250.00"
Department for Culture Media and Sport,Department for Culture Media and Sport,22/06/2011,Office Accommodation Rent,Estates & Property Services,Cushman & Wakefield,0030022574,"190,620.00"
Department for Culture Media and Sport,Department for Culture Media and Sport,22/06/2011,Special Bonuses,Evidence & Analysis unit administration,Dept for Communities & Local Govt,0030022716,600.00
Department for Culture Media and Sport,Department for Culture Media and Sport,22/06/2011,TSOL Advice Billed Hours,Legal Advisers to DCMS (TSOL),Treasury Solicitors,0030022760,"140,542.61"
Department for Culture Media and Sport,Department for Culture Media and Sport,22/06/2011,Publications & Website,Govt Art Collection programme,Park Studio,0030022772,"5,523.00"
Department for Culture Media and Sport,Department for Culture Media and Sport,22/06/2011,Art Transport - Overseas,Govt Art Collection programme,Martinspeed Ltd,0030022774,"3,070.00"
Department for Culture Media and Sport,Department for Culture Media and Sport,22/06/2011,Art Transport - UK,Govt Art Collection programme,Oxford Exhibition Services,0030022775,600.00
Department for Culture Media and Sport,Department for Culture Media and Sport,22/06/2011,Grant-in-Aid (DCMS NDPBs),GIA Architecture+Heritage,Comm.for Architecture & the Built Envir.,0030022777,"300,000.00"
Department for Culture Media and Sport,Department for Culture Media and Sport,22/06/2011,Capital Grant Private Sector,Grant support to NFTS,National Film & Television School,0030022778,"241,999.00"
Department for Culture Media and Sport,Department for Culture Media and Sport,23/06/2011,Grant to BBC:Home Broadcasting,Home Broadcasting:Grant to BBC,British Broadcasting Corporation,0030022381,"35,073,000.00"
Department for Culture Media and Sport,Department for Culture Media and Sport,23/06/2011,Space Hire and Licences,State Ceremonials - Programme Costs,The Queen Elizabeth II Conference Centre,0030022733,"1,928.00"
Department for Culture Media and Sport,Department for Culture Media and Sport,23/06/2011,IT Consumables,Government Olympic Executive,Selex Communications Ltd,0030022780,744.00
Department for Culture Media and Sport,Department for Culture Media and Sport,23/06/2011,Other Courier Services,Estates & Property Services,Ecovert FM Ltd,0030022781,"7,972.54"
Department for Culture Media and Sport,Department for Culture Media and Sport,23/06/2011,Statutory Instrument Costs,Director Programmes,The Stationery Office,0030022787,632.00
Department for Culture Media and Sport,Department for Culture Media and Sport,24/06/2011,IT Support,Information Services,Verizon UK Ltd,0030022612,778.80
Department for Culture Media and Sport,Department for Culture Media and Sport,24/06/2011,Grant-in-Aid (DCMS NDPBs),GIA Architecture+Heritage,Comm.for Architecture & the Built Envir.,0030022794,"50,000.00"
Department for Culture Media and Sport,Department for Culture Media and Sport,24/06/2011,Conservation - Picture Frames,Govt Art Collection programme,Alexander G Ley & Son,0030022798,"2,300.00"
Department for Culture Media and Sport,Department for Culture Media and Sport,24/06/2011,Temp staff filling vacancy,Public Engagement + Recognition Unit,Brook Street ( UK ) Ltd,0030022810,571.91
Department for Culture Media and Sport,Department for Culture Media and Sport,27/06/2011,IT Capital Additions,Information Services,Atos Origin IT Services UK Ltd,0030022618,"36,603.76"
Department for Culture Media and Sport,Department for Culture Media and Sport,27/06/2011,IT Maintenance,Information Services,Atos Origin IT Services UK Ltd,0030022693,"153,143.77"
Department for Culture Media and Sport,Department for Culture Media and Sport,27/06/2011,Ceremonial Event Costs,State Ceremonials - Programme Costs,Ubiqus,0030022795,"176,300.00"
Department for Culture Media and Sport,Department for Culture Media and Sport,27/06/2011,Host Management Services,State Ceremonials - Programme Costs,Arena Structures,0030022797,"86,430.90"
Department for Culture Media and Sport,Department for Culture Media and Sport,27/06/2011,Research,EAU Taking Part Survey,TNS UK LTD,0030022799,"97,390.00"
Department for Culture Media and Sport,Department for Culture Media and Sport,28/06/2011,Mailroom Services,Estates & Property Services,Ecovert FM Ltd,0030022766,"13,468.74"
Department for Culture Media and Sport,Department for Culture Media and Sport,28/06/2011,Temp staff filling vacancy,Government Olympic Executive,Brook Street ( UK ) Ltd,0030022800,659.66
Department for Culture Media and Sport,Department for Culture Media and Sport,28/06/2011,Temp staff filling vacancy,Government Olympic Executive,Brook Street ( UK ) Ltd,0030022801,820.44
Department for Culture Media and Sport,Department for Culture Media and Sport,28/06/2011,Temp staff filling vacancy,Government Olympic Executive,Brook Street ( UK ) Ltd,0030022802,783.35
Department for Culture Media and Sport,Department for Culture Media and Sport,28/06/2011,Temp staff filling vacancy,Government Olympic Executive,Brook Street ( UK ) Ltd,0030022803,743.69
Department for Culture Media and Sport,Department for Culture Media and Sport,28/06/2011,Temp staff filling vacancy,Government Olympic Executive,Brook Street ( UK ) Ltd,0030022804,602.83
Department for Culture Media and Sport,Department for Culture Media and Sport,28/06/2011,Temp staff filling vacancy,Government Olympic Executive,Brook Street ( UK ) Ltd,0030022805,792.36
Department for Culture Media and Sport,Department for Culture Media and Sport,28/06/2011,Temp staff filling vacancy,Government Olympic Executive,Brook Street ( UK ) Ltd,0030022806,751.28
Department for Culture Media and Sport,Department for Culture Media and Sport,28/06/2011,Temp staff filling vacancy,Government Olympic Executive,Brook Street ( UK ) Ltd,0030022807,677.99
Department for Culture Media and Sport,Department for Culture Media and Sport,28/06/2011,Local Photocopiers,Estates & Property Services,Canon (UK) Ltd,0030022815,"13,999.72"
Department for Culture Media and Sport,Department for Culture Media and Sport,28/06/2011,Publications and Printing,Press Office,The Stationery Office,0030022820,"1,084.29"
Department for Culture Media and Sport,Department for Culture Media and Sport,28/06/2011,Temp staff Interim managers,Government Olympic Executive,Russam GMS LTD,0030022823,"9,342.00"
Department for Culture Media and Sport,Department for Culture Media and Sport,28/06/2011,Temp staff Interim managers,Government Olympic Executive,Russam GMS LTD,0030022824,"7,473.60"
Department for Culture Media and Sport,Department for Culture Media and Sport,28/06/2011,Temp staff Interim managers,Government Olympic Executive,Russam GMS LTD,0030022825,"2,802.60"
Department for Culture Media and Sport,Department for Culture Media and Sport,29/06/2011,National Non-Domestic Rates,Estates & Property Services,London Borough of Camden,0030022662,"16,711.00"
Department for Culture Media and Sport,Department for Culture Media and Sport,29/06/2011,National Non-Domestic Rates,Estates & Property Services,London Borough of Camden,0030022663,"9,287.00"
Department for Culture Media and Sport,Department for Culture Media and Sport,29/06/2011,National Non-Domestic Rates,Estates & Property Services,Westminster City Council,0030022664,"175,347.00"
Department for Culture Media and Sport,Department for Culture Media and Sport,29/06/2011,Ceremonial Event Costs,State Ceremonials - Programme Costs,Ubiqus,0030022796,"28,981.16"
Department for Culture Media and Sport,Department for Culture Media and Sport,29/06/2011,Temp staff filling vacancy,Human Resources Team,Brook Street ( UK ) Ltd,0030022808,887.84
Department for Culture Media and Sport,Department for Culture Media and Sport,29/06/2011,Temp staff Interim managers,Government Olympic Executive,LA International,0030022813,"18,224.83"
Department for Culture Media and Sport,Department for Culture Media and Sport,29/06/2011,Other Telephone Charges,Information Services,Telefonica O2 UK Ltd,0030022821,"4,088.47"
Department for Culture Media and Sport,Department for Culture Media and Sport,29/06/2011,Publicity,Press Office,The Stationery Office,0030022827,"2,554.56"
Department for Culture Media and Sport,Department for Culture Media and Sport,29/06/2011,Art Transport - UK,Govt Art Collection programme,Fine Art Transport Services Ltd,0030022828,503.00
Department for Culture Media and Sport,Department for Culture Media and Sport,30/06/2011,Current Grants Private Sector,Other Sports Support(excl ISB),IMG UK Ltd Client A/c,0030022648,"6,250.00"
Department for Culture Media and Sport,Department for Culture Media and Sport,30/06/2011,Grant-in-Aid (DCMS NDPBs),GIA Olympic Delivery Authority,Olympic Delivery Authority (31255483),0030022784,"50,000,000.00"
Department for Culture Media and Sport,Department for Culture Media and Sport,30/06/2011,Other Consultancy,Dir Culture team + projects,Watts Group PLC,0030022830,"1,375.73"
Department for Culture Media and Sport,Department for Culture Media and Sport,30/06/2011,Transcripts,Press Office,COI Communication,0030022835,425.00
Department for Culture Media and Sport,Department for Culture Media and Sport,30/06/2011,Ceremonials Storage Costs,State Ceremonials - Programme Costs,Brophy Grounds Maintenance Ltd,0030022836,"1,271.88"
Department for Culture Media and Sport,Department for Culture Media and Sport,30/06/2011,Ceremonials Storage Costs,State Ceremonials - Programme Costs,Brophy Grounds Maintenance Ltd,0030022837,"1,271.88"
Department for Culture Media and Sport,Department for Culture Media and Sport,30/06/2011,Ceremonials - Other Costs,State Ceremonials - Programme Costs,Arena Structures,0030022838,"21,017.30"
